[Event "FIDE Candidates 2026"]
[Site "Pegeia, Cyprus"]
[Date "2026.04.04"]
[Round "7.4"]
[White "Wei, Yi"]
[Black "Sindarov, Javokhir"]
[Result "0-1"]
[ECO "C28"]
[WhiteElo "2754"]
[BlackElo "2745"]
[Annotator "Rafael Leitao"]
[PlyCount "72"]
[EventDate "2026.??.??"]
[TimeControl "40/7200:1800+30"]

{[%evp 0,72,22,22,22,22,22,22,20,17,9,-18,-32,-29,34,6,75,-44,-5,-13,0,5,10,13,9,-30,-17,-35,-9,-75,-75,-57,-3,5,13,13,1,5,-7,0,-16,-27,-31,-31,-6,-46,-46,-46,-23,-25,-25,-46,-60,-143,-129,-145,-140,-128,-124,-118,-118,-98,-178,-170,-177,-185,-176,-150,-150,-153,-153,-252,-252,-252,-588]} 1. e4 e5 2. Nc3 Nc6 3. Bc4 Nf6 4. d3 {O GM chinês gosta de jogar essa variante de vez em quando. Com Sindarov demonstrando grande preparação nas aberturas, é natural optar por algo mais tranquilo.} Na5 {Um dos lances principais, capturando o perigoso bispo de casas claras. 4...Bb4 e 4...Bc5 também são muito populares.} (4... Bb4) (4... Bc5) 5. a3 {Um lance raro, forçando as Pretas a capturarem imediatamente o bispo.} (5. Nge2 {é o lance principal.}) (5. Bb3 Nxb3 6. axb3 d5 7. exd5 Bb4 8. Bg5 Qxd5 9. Nf3 {foi jogado em Wei–Artemiev, no TechM GCL rápido de Mumbai 2025.}) (5. Qf3 $5 Nxc4 6. dxc4 d6 7. Nge2 Be7 8. h3 O-O 9. Ng3 c6 10. O-O {levou a uma leve vantagem para as Brancas em Wei–Abdusattorov, no Superbet Rapid de Varsóvia 2024.}) 5... Nxc4 6. dxc4 Bc5 {Alguns jogadores preferem desenvolver o bispo em e7, o que pode ser feito imediatamente ou após ...d7-d6, já que, nesse caso, as Pretas não precisam se preocupar com a cravada em g5 nem com um ataque ao bispo após b2-b4. Mas não há nada de errado com o lance jogado na partida.} (6... d6) ({Mark Crowther: 'RR'} 6... Be7 7. Nf3 d6 8. Qd3 O-O 9. h3 h6 10. Be3 Be6 11. g4 Nd7 12. Rg1 c6 13. O-O-O a6 14. h4 b5 15. cxb5 axb5 16. g5 h5 17. g6 f6 18. Qe2 Bg4 19. Rxg4 hxg4 20. Nd2 f5 21. exf5 {Klys,K (2265)-Sherwood,F (1907) chess.com INT 2026 1-0 (33)}) 7. Nf3 d6 8. Qd3 {Mark Crowther: 'The position is equal.'} ({Da mesma forma, contra Mark Crowther: 'RR'} 8. Qe2 {as Pretas devem responder com} Be6 $1 (8... h6 $6 9. Be3 Bxe3 10. Qxe3 {permitiu às Brancas trocarem os bispos e alcançarem uma leve vantagem em Dubov–Oparin, no Chess.com Classic Play rapid 2024.} b6 11. O-O-O Be6 12. Nxe5 Qc8 13. Nf3 O-O 14. b3 Re8 15. Nd4 a6 16. f3 Nd7 17. g4 Nc5 18. Rhg1 Kh7 19. f4 b5 20. f5 Bd7 21. g5 Bxf5 22. gxh6 g6 {Dubov,D (2707)-Oparin,G (2676) chess.com INT 2024 1-0 (31)})) 8... Be6 $1 {Desenvolvendo e impedindo ...Be3, já que, após a troca, o peão em c4 fica em perigo. Mark Crowther: 'N'} ({Mark Crowther: 'RR'} 8... h6 {permite} 9. Be3 $1 (9. h3 Be6 10. Na4 O-O 11. Bd2 Nd7 12. g4 a6 13. b3 Ba7 14. Rd1 Qe7 15. Qe2 Rfe8 16. Kf1 Nf8 17. Nc3 c6 18. a4 Rad8 19. Be3 Bxe3 20. fxe3 Ng6 21. Kg2 Rd7 22. Rd2 Qd8 23. Rhd1 {Biolek,R (2460)-Van Hoolandt,P (2191) Imperia 2005 1-0 (76)})) ({RR} 8... a6 9. Bg5 h6 10. Bxf6 Qxf6 11. Nd5 Qd8 12. O-O-O O-O 13. Ne3 Be6 14. h3 Qe8 15. Nd2 b5 16. Rhf1 Bxe3 17. fxe3 Qc6 18. g4 Rfb8 19. Rf2 bxc4 20. Qc3 Rb6 21. Rg1 Rab8 22. h4 Rxb2 23. h5 {Schmidt,D (2071)-Schulz,J (2218) Hannover 2014 0-1 (40)}) 9. Bg5 {A boa e velha cravada é sempre desagradável de enfrentar.} a5 {Impedindo b2-b4. Mark Crowther: 'N' Mark Crowther: 'The best move, preserving the bishop.'} ({Mark Crowther: 'Predecessor:'} 9... h6 {é perigoso, já que após} 10. Bxf6 Qxf6 11. b4 {As Pretas têm que jogar o bispo em d4, algo que claramente não querem fazer. Em caso de} Bb6 $2 {ele perde uma peça após} (11... Bd4) 12. c5 $1 dxc5 13. bxc5 Bxc5 (13... Rd8 14. Qe2 O-O 15. cxb6 cxb6 {1-0 Horackova,M (2355)-Zimmermann,B (2495) ICCF-Cup6/7 sf corr ICCF corr 1990}) 14. Qb5+) 10. Nd5 c6 $1 {Excelente senso de posição e, de forma alguma, uma decisão óbvia. Acho que muitos jogadores prefeririam capturar em d5, com receio de peões dobrados (um dos conceitos mais superestimados no xadrez).} (10... Bxd5 11. cxd5 {As Brancas provavelmente podem contar com uma pequena vantagem nesse caso, graças à vantagem de espaço.}) 11. Nxf6+ gxf6 12. Bh4 $1 (12. Be3 {Em geral, é bom trocar os bispos quando o adversário tem o par, mas aqui provavelmente é mais importante manter o peão de f6 sob ataque (a principal ideia de 12.Bh4), para prender a dama das Pretas à sua defesa. Aqui é possível jogar} Qb6 {com uma boa posição.}) 12... Rg8 (12... Ke7 {is an engine suggestion, I can see the point but who would really do this?} 13. O-O) 13. O-O a4 {Um lance natural, ganhando espaço na ala da dama.} (13... Ke7 {again is a suggestion. If this line is repeated this could be chosen.} 14. Kh1 a4 15. Nd2 Rg4) 14. b4 $1 axb3 15. cxb3 {Ambos os jogadores estão demonstrando excelente xadrez. As Brancas calcularam corretamente que é possível sacrificar o peão em a3.} Bg4 $5 {Uma ideia muito engenhosa, preparando para capturar o cavalo e colocar o bispo em d4.} (15... Bxa3 {é perigoso para as Pretas após} 16. Ra2 {(preparando para dobrar as torres na coluna a.)} Bc5 (16... Ra6 {provavelmente é melhor, com apenas uma leve vantagem para as Brancas após} 17. Rfa1 Bc5 18. Rxa6 bxa6 19. Rxa6) 17. Bxf6 $1 {Uma ideia tática que restabelece a igualdade material.} Qb8 18. Rxa8 Qxa8 19. Ng5 $1 {com a iniciativa.}) (15... Rxa3 {na verdade é jogável. As Pretas têm uma ideia interessante na linha principal.} 16. Rxa3 Bxa3 17. Ra1 {Este é o lance óbvio, mas talvez colocar a torre em d1 seja melhor.} (17. Rd1 $1 {Isso ameaça capturar em e5 e mantém alguma iniciativa.}) 17... Bc5 {Mark Crowther: 'is about equal.'} 18. Bxf6 $1 {Parece que as Pretas estão em apuros, mas após} Rxg2+ $1 (18... Qxf6 $2 19. Ra8+ {perde material.}) 19. Kxg2 Qxf6 {Há uma compensação bastante razoável pela qualidade sacrificada. Os bispos são poderosos e o rei das Brancas está inseguro.}) (15... Qd7 $5) 16. b4 (16. Kh1 $5 Rg6 17. a4 Qd7 18. Bg3 f5 19. Nh4 fxe4 20. Qxe4 Rg8) 16... Bxf3 17. Qxf3 Bd4 {Mark Crowther: 'and white has a decision to make.'} 18. Bxf6 {É difícil criticar esse lance, embora o computador não goste tanto assim. Mas como um humano resistiria a capturar um peão livre enquanto ataca a dama $2 A alternativa é mover a torre primeiro e só depois pensar nesse peão. Mark Crowther: '?!'} (18. Ra2) (18. Rab1) (18. Rad1) 18... Qd7 {As Brancas estão com um peão a mais, mas o problema é que não conseguirão manter a vantagem material por muito tempo.} 19. Rad1 {Mark Crowther: ''} (19. Ra2 Qe6 20. Rc2 {Essa sequência natural leva a uma posição perdida para as Brancas e demonstra o potencial da posição das Pretas.} Rg6 21. Bh4 Qg4 $1 22. Qxg4 Rxg4 23. Bg3 Rxe4 {Seguido de f5-f4 ou h5-h4, com vantagem decisiva.}) 19... Qe6 $1 {O peão de c4 não pode ser defendido.} 20. h3 {Um lance útil, dando uma casa de escape ao rei.} (20. h4) 20... Qxc4 (20... Rg6 {é mais preciso, evitando um possível sacrifício de qualidade em d4. Após Mark Crowther: '!?'} 21. Bh4 {Mark Crowther: ''} Qxc4 {As Pretas têm uma leve vantagem, já que o bispo em d4 é muito forte. Mark Crowther: '='}) 21. Rd3 (21. Rxd4 $1 {Esse sacrifício de qualidade é uma excelente tentativa prática, mas entendo que seja muito difícil escolher esse lance durante a partida. Mark Crowther: 'seems to equalise.'} exd4 (21... Qxd4 22. Rd1 Rxa3 $1 {Um contra-ataque necessário, caso contrário a posição das Pretas se torna perigosa.} (22... Qc4 23. Rxd6 Qc1+ 24. Kh2 Qf4+ 25. Qxf4 exf4 {Aqui, apenas as Brancas estão pensando na vitória.}) 23. Rxd4 Rxf3 24. Rxd6 Rxf6 25. Rxf6 Ke7 {com um final de torres que deve terminar em empate com o melhor jogo.} 26. Rf5) 22. Rd1 {O peão de d será capturado no próximo lance (é ruim para as Pretas jogar 22...c5, pois 23.e5 é devastador), quando as Brancas têm compensação total pela qualidade.}) 21... Qe6 22. Rfd1 (22. Rxd4 $5 {Mais uma vez, as Brancas podem considerar o sacrifício de qualidade. Mark Crowther: 'again is probably best.'} exd4 23. Bxd4 O-O-O 24. Re1) 22... Rg6 (22... c5 $5 {As Pretas poderiam evitar o sacrifício típico e começar a avançar na ala da dama.}) 23. Bh4 (23. Rxd4 {é possível novamente.} exd4 (23... Rxf6 {leva a um final empatado após} 24. Qg3 Rg6 25. Rxd6 Qxd6 26. Rxd6 Rxg3 27. fxg3 Rxa3 28. b5) 24. Bxd4 {com compensação.} O-O-O 25. Kh2 Re8 26. g3 Qxe4 27. Qxf7 {with complications.}) 23... Kf8 (23... c5 {é novamente um bom plano. Mark Crowther: '!'}) 24. Qh5 (24. Rb1) 24... Kg8 (24... c5 {is interesting.} 25. Bg5 c4 26. Rf3 Rc8) 25. Kh1 (25. Rf3 Rh6 26. Qg5+ Rg6 27. Qf5) 25... c5 $1 {As Brancas estão agora em grandes dificuldades posicionais. As Pretas têm um plano de ação claro, enquanto não está evidente o que as Brancas podem fazer. Para piorar a situação, Wei Yi estava com pouco tempo no relógio.} 26. f4 {Wei Yi é um jogador de ataque, então tenta desesperadamente criar algumas chances ativas. Acho que foi uma boa decisão prática. Mark Crowther: '?' Mark Crowther: 'In a difficult position this doesn't improve things.'} (26. bxc5 dxc5 {É importante capturar com o peão, já que avançá-lo rumo à promoção é o plano vencedor.} 27. Qe2) 26... exf4 27. Qf3 Re8 $6 {Uma imprecisão rara de Sindarov não apenas nesta partida, mas em todo o torneio até agora. Mark Crowther: 'Not bad but not the best and allows Wei Yi back in the game.'} (27... Be5 $1 {é mais forte, quando as Pretas consolidam um peão a mais e ficam com uma posição praticamente ganha. Mark Crowther: 'is very strong.'}) 28. Bf2 $1 {Após a troca de bispos, as fraquezas de peões de ambos os lados se acentuam, e a possibilidade de simplificação ajuda as Brancas. Como é bem conhecido, ao defender um final, o lado defensor deve acolher as trocas de peões.} Bxf2 29. Qxf2 Qxe4 30. Rxd6 $2 {[%eval -372,14] [%wdl 0,0,1000] Um erro fatal. Mark Crowther: 'The losing move.'} (30. bxc5 $1 {[%eval -44,20] [%wdl 0,973,27] é necessário, quando após Mark Crowther: ''} dxc5 31. Rf3 $1 {O peão de f4 é capturado e as Brancas têm excelentes chances de empate.} Qe2 32. Rd8 $1 {is the saving idea.}) 30... Rxd6 {Mark Crowther: '-+'} 31. Rxd6 {Mark Crowther: '='} Qe3 $1 {As Brancas não podem trocar as damas, pois o peão passado em e3 é decisivo. Assim, precisam perder um tempo movendo a dama, enquanto o peão de c começa a avançar. Mark Crowther: 'Sindarov didn't take long to play this.'} 32. Qf3 (32. Qxe3 fxe3 {Aqui, as Pretas vencem forçado:} 33. Rd1 c4 34. Kg1 e2 35. Re1 c3 36. Kf2 c2 37. a4 Rd8 $1 {seguido de Td1.}) (32. Qh4 {Wei Yi picked up his Queen and almost played this move before realising it just lost and putting it back on its original square.} Qg3 {wins.} (32... f3 33. Qg4+ Kf8 34. Qxf3 Qxf3 35. gxf3 c4 {is maybe what Wei Yi originally analysed.})) 32... c4 $1 33. Qg4+ Kf8 34. Rd1 {Mark Crowther: 'Black is clearly winning.'} c3 35. Qg5 {[%eval -856,15] [%wdl 0,0,1000] Tentando um último recurso. Mark Crowther: 'There's no fixing white's position but this now ends the game almost immediately.'} (35. Qf5 $142 {[%eval -485,16] [%wdl 0,0,1000]} Qg3 36. Rg1) 35... f3 $1 {Sindarov é um calculista magnífico e finaliza a partida com estilo. Mark Crowther: '-+'} (35... c2 $4 {permite xeque perpétuo.} 36. Qh6+ Kg8 (36... Ke7 37. Qd6#) 37. Qg5+) 36. Qxe3 Rxe3 {Mark Crowther: 'and one of the pawns will queen.'} (36... Rxe3 {As Pretas vencem com facilidade, por exemplo:} 37. gxf3 c2 38. Rc1 Re2 39. Kg1 Rd2 {seguido de Td1.}) 0-1

[Event "FIDE Candidates 2026"]
[Site "Pegeia, Cyprus"]
[Date "2026.04.07"]
[Round "8.1"]
[White "Esipenko, Andrey"]
[Black "Sindarov, Javokhir"]
[Result "1/2-1/2"]
[ECO "D02"]
[WhiteElo "2698"]
[BlackElo "2745"]
[Annotator "Mark Crowther"]
[PlyCount "48"]
[EventDate "2026.??.??"]
[TimeControl "40/7200:1800+30"]

{[%evp 0,48,22,-15,4,-40,-40,-32,-28,-32,8,-11,16,23,16,-26,13,-13,10,19,25,25,42,23,29,37,32,33,29,57,53,51,76,64,64,55,47,50,71,66,66,66,100,70,61,68,77,68,69,69,71]} 1. c4 e6 2. g3 d5 3. Bg2 Nf6 4. Nf3 Bd6 {This modern approach is quite fashionable, even running to Chessable courses.} 5. O-O O-O 6. d4 Nc6 7. e3 ({Relevant:} 7. a3 a5 8. Qc2 a4 9. c5 Be7 10. Nc3 Bd7 11. Bf4 Nh5 12. Bd2 f5 13. Nxa4 g5 14. e3 g4 15. Ne1 Nxd4 16. exd4 Bxa4 17. b3 Bb5 18. Nd3 Nf6 19. a4 Bxd3 20. Qxd3 Qd7 21. a5 Ne4 22. b4 c6 23. Bf4 Bf6 24. Rab1 h5 25. Rfd1 h4 26. Qe3 Kf7 27. Bxe4 dxe4 28. Bd6 Rh8 29. Rb2 Kg6 30. Rdb1 Qg7 31. Rd1 Rh5 32. Qb3 hxg3 33. Bxg3 Qd7 34. Ra2 Qd5 35. Qxd5 exd5 36. b5 cxb5 {0-1 Lazavik,D (2605)-Carlsen,M (2840) London SpeedChess Final blitz 2026 (1.10)}) ({RR} 7. b3 dxc4 8. bxc4 e5 9. c5 Be7 10. dxe5 Qxd1 11. Rxd1 Ne4 12. Ba3 Bxc5 13. Bxc5 Nxc5 14. Nc3 Be6 15. Nb5 Bc4 16. Nxc7 Rac8 17. Rdc1 Na5 18. Nd2 Rxc7 19. Nxc4 Nab3 20. axb3 Nxb3 21. Rcb1 Nxa1 {Giri,A (2777)-Artemiev,V (2699) chess24.com INT 2021 0-1 (35)}) 7... Re8 {This seems to be a new move, and got Esipenko thinking.} 8. Nbd2 $146 {[#]} ({RR} 8. b3 dxc4 9. bxc4 e5 10. Bb2 exd4 11. exd4 Bf5 12. Na3 Qd7 13. Nb5 Na5 14. Nxd6 cxd6 15. Rc1 Rac8 16. d5 Ne4 17. Qd4 f6 18. Nh4 Nc5 19. Nxf5 Qxf5 20. Ba3 b6 21. Qh4 Qg5 22. Qd4 Nab7 {Ambartsumova,K (2385)-Ter Sahakyan,S (2613) chess.com INT 2026 0-1 (74)}) ({RR} 8. Re1 a5 9. a3 h6 10. Nfd2 b6 11. Nc3 Bf8 12. b3 Bb7 13. Bb2 dxc4 14. bxc4 e5 15. dxe5 Nd7 16. f4 Nc5 17. Nde4 Nd3 18. Re2 Nxb2 19. Qxd8 Rexd8 20. Rxb2 a4 21. c5 Na5 22. cxb6 Nc4 {Yeletsky,I (2460)-Bardyk,A (2332) Sochi RUS 2025 ½-½ (117)}) 8... a5 $146 ({Predecessor:} 8... b6 9. b3 Qe7 10. a3 a5 11. Bb2 Bb7 12. Qc2 h6 13. Rfc1 Qd8 14. Ne5 Ne7 15. Nd3 Nf5 16. c5 Be7 17. Ne5 Rb8 18. b4 bxc5 19. dxc5 axb4 20. axb4 Ba8 21. Ra4 Nd7 22. Nxd7 Qxd7 23. c6 Qd8 24. Qb3 Bf6 25. Bxf6 Qxf6 26. b5 Nd6 27. Bf1 Qd8 28. Qb4 Nc8 29. Qc5 Nb6 30. Ra6 g6 31. Rca1 Kg7 32. Ra7 e5 33. e4 dxe4 34. Nxe4 Re6 35. h4 Re8 36. R1a6 g5 37. hxg5 hxg5 38. Qe3 {1-0 Fischer,S (1927)-Frenzel,L (1609) GER OS-518 email GER email 2024}) 9. b3 a4 10. Bb2 Bb4 11. a3 Bxd2 12. Nxd2 axb3 13. Qxb3 Na5 14. Qc2 Bd7 15. Rfc1 {It was at this point that Sindarov stopped to think for 15 minutes and concluded his best option was to sacrifice the pawn on c7.} (15. Rfe1) 15... dxc4 (15... Bc6 {was his original plan, but he didn't like:} 16. cxd5 exd5 (16... Bxd5 {Sindarov described this as impossible. White can continue with} 17. e4 $1 {or just taken the pawn on c7.}) 17. Bc3 {Sindarov feared White's plan of bringing this bishop to b4.}) 16. Nxc4 Bc6 17. Nxa5 Bxg2 18. Kxg2 {[#] And now Nc4 would win.} Qd5+ 19. Kg1 Rxa5 20. Qxc7 {White has picked up a pawn, but has a bad bishop, while the f6-knight can become a monster if it ever gets to h3 or f3.} h5 21. Qe5 {An exchange of queens kills Black's attacking intentions.} Qd8 22. Qc7 {The position is equal.} Qd5 {Esipenko here decides simply to concede a draw, though he could have chosen to play on.} 23. Qe5 (23. Bc3 Raa8 24. Qe5 Qf3 25. Qf4 Qd5 26. h4 {doesn't look particularly convincing for White, but as they say, a pawn is a pawn $1}) 23... Qd8 24. Qc7 Qd5 1/2-1/2

[Event "FIDE Candidates 2026"]
[Site "Pegeia, Cyprus"]
[Date "2026.04.07"]
[Round "8.2"]
[White "Wei, Yi"]
[Black "Bluebaum, Matthias"]
[Result "1/2-1/2"]
[ECO "C28"]
[WhiteElo "2754"]
[BlackElo "2698"]
[Annotator "Mark Crowther"]
[PlyCount "103"]
[EventDate "2026.??.??"]
[TimeControl "40/7200:1800+30"]

{[%evp 0,103,20,20,20,17,17,17,9,9,18,15,48,43,32,-2,32,30,32,27,29,27,60,49,63,40,45,49,38,9,20,23,44,12,29,13,8,-1,-9,-6,-6,-6,-17,-51,43,18,103,38,38,41,41,41,43,8,18,-30,58,-16,53,81,77,81,60,42,73,89,111,111,111,93,93,87,87,87,1,29,29,31,31,31,31,31,120,31,54,32,85,19,17,17,17,17,17,0,0,0,0,0,0,0,0,0,0,0,0,0]} 1. e4 e5 2. Nc3 Nf6 3. Bc4 Nc6 4. d3 Bb4 5. Nf3 d5 6. exd5 Nxd5 7. O-O Bxc3 8. bxc3 Bg4 9. Re1 ({RR} 9. Ba3 Nxc3 10. Qe1 Bxf3 11. gxf3 Nd5 12. Rb1 Qg5+ 13. Kh1 O-O-O 14. Rg1 Qh5 15. Rg3 f5 16. Rb5 f4 17. Rg4 Nd4 18. Qe4 Nxb5 19. Bxd5 Rxd5 20. Qxd5 Nxa3 21. Rxg7 Rd8 22. Qe6+ Kb8 23. Kg2 Qe8 {Duda,J (2732)-Alekseenko,K (2679) chess.com INT 2024 ½-½ (36)}) ({RR} 9. Bd2 O-O 10. a4 a6 11. h3 Bh5 12. Re1 Re8 13. a5 h6 14. Bb3 Qd7 15. Ba4 Nf4 16. Bxf4 exf4 17. Rxe8+ Rxe8 18. d4 Qf5 19. Bxc6 bxc6 20. Qd3 Qxd3 21. cxd3 Bxf3 22. gxf3 Rd8 23. Rb1 c5 {Schmakel,S (2449)-Ringoir,T (2525) Middleton, WI USA 2025 ½-½ (38)}) 9... O-O 10. Bd2 Bh5 $146 {C28: Vienna Game: 2...Nf6 3 Bc4 Nc6.} ({Predecessor:} 10... Qd6 11. Rb1 Bh5 12. h3 Rad8 13. g4 Bg6 14. Nh4 Nb6 15. Bb3 Na5 16. Nxg6 hxg6 17. Qf3 c6 18. c4 Nxb3 19. Rxb3 {1-0 Aronian,L (2745)-Giri,A (2768) Warsaw Superbet Rapid 2023 (3)}) ({RR} 10... Re8 11. Rb1 (11. h3 Bh5 12. Rb1 Nb6 13. Bb5 Qd6 14. g4 Bg6 15. Nh4 Rad8 16. Bg5 f6 17. Be3 Nd5 18. Qd2 a6 19. Bxc6 Qxc6 20. Nxg6 hxg6 21. c4 {½-½ (21) Roeberg,F (2265)-Taggatz,M (2205) Austria 2000}) 11... Nb6 12. Bb3 Qf6 13. Re4 Bh5 14. Qe2 Bg6 15. Re3 Re7 16. Bc1 Qd6 17. Nh4 Nd5 18. Nxg6 hxg6 19. Bxd5 Qxd5 20. Rb3 Rae8 21. f3 b6 22. Qe1 Na5 23. c4 Qd6 24. Rb1 Nc6 25. c3 {Emms,J (2305)-Condie,M (2410) Southampton 1986 0-1 (39)}) 11. a4 Kh8 12. a5 Rb8 13. Bb5 {[#]} Nde7 14. Ra4 {and g4 would now be decisive} Qd5 15. Bc4 Qd6 16. Bc1 f6 {[%eval 66,17] [%wdl 167,833,0]} (16... f5 $11 {[%eval 0,17] [%wdl 9,982,9]} 17. Qe2 b5 18. axb6 cxb6) 17. Ba3 $14 Qd7 {[#]} 18. Bb5 {[%eval 6,20] [%wdl 12,982,6] A strong pair of Bishops.} (18. Bb3 $1 $16 {[%eval 78,19] [%wdl 263,737,0]}) 18... Rfd8 $11 19. Rh4 Bf7 {[%eval 59,17] [%wdl 125,874,1]} ({Better is} 19... Qf5 $11 {[%eval -30,19] [%wdl 2,963,35]}) 20. Bxe7 $1 $14 Qxe7 21. d4 {Repels Qc5} Bg6 22. a6 Qd6 23. Bd3 Bxd3 24. Qxd3 h6 25. axb7 {White is more active.} Rxb7 26. g4 Kg8 27. Rh5 Qd7 28. h3 (28. dxe5 $2 Qxg4+ 29. Kf1 Rxd3 $19) 28... Qf7 {Dodges Qg6} 29. Qe4 Qd5 30. Qe2 Re8 31. c4 Qf7 32. Qe4 {Counterplay Black} (32. dxe5 {simplifies} Nxe5 33. Nxe5 Rxe5 34. Rxe5 fxe5 35. Rd1) 32... Qxc4 {The position is equal.} 33. Rxh6 $3 {Not a killer move, but probably not what you want to face with Black when you have eight minutes on your clock.} gxh6 {The good news for Bluebaum, however, is that his replies are forced.} 34. Qg6+ Kf8 35. Qxf6+ (35. Qxh6+ $6 Ke7 36. dxe5 Kd8 (36... Qxc2 $2 37. exf6+ Kd7 38. Qg7+ {[%mdl 64] Deflection} Kd6 39. f7 $18) 37. Rd1+ Kc8 38. exf6 Rb6 $17 (38... Qxc2 39. Rd2 $17)) 35... Kg8 (35... Qf7 $2 {leaves the c6-knight undefended, but it's worse than that.} 36. Qxh6+ Kg8 37. Ng5 $1 {Now White is winning.} (37. Qxc6 {is likely a draw.}) 37... Qd5 38. Qg6+ Kf8 39. Nh7+ Ke7 40. Qg5+ Kd6 41. Nf6 {is not the kind of thing Black wants to contemplate.}) 36. Qg6+ (36. Qxh6 Re7 37. Qg6+ (37. dxe5 $2 Qxc2 38. Kg2 Rb2 $19) 37... Kf8 $17) 36... Kf8 37. Qf6+ Kg8 38. Qg6+ Kf8 39. Qxh6+ ({Of course not} 39. dxe5 $6 {too greedy.} Re6 (39... Qe6 40. Qh7 Rd8 $17) 40. Qf5+ Ke8 $19) 39... Kg8 40. Qg6+ Kf8 41. Qf6+ Kg8 42. Ng5 {Wei plays on instead of forcing an immediate draw.} Nxd4 $1 {A key move. It was clear that Bluebaum had most of the rest of the game worked out.} 43. Qg6+ Kf8 44. Qf6+ Kg8 45. Qg6+ Kf8 46. Qh6+ Ke7 $1 {Essential.} (46... Kg8 $2 47. Qh7+ Kf8 48. Qh8+ Ke7 49. Qxe5+ {and Black is busted.}) 47. Rxe5+ Kd8 48. Qf6+ {It turns out that this is equal and white has nothing better than to repeat.} Kd7 49. Qg7+ Kd8 {The king has to keep defending the rook.} 50. Qf6+ Kd7 51. Qg7+ Kd8 52. Qf6+ {A great fight $1} 1/2-1/2